Workbook

Sheet Canaleta de concreto polímero
A1: PLANILHA DE CÁLCULO - CANALETA BD300
A2: km | C2: POSIÇÃO | D2: ÁREA | F2: TEMPO DE | G2: INTENS. | H2: VAZÃO | I2: DECLIVI- | J2: TIPO DE CANALETA | K2: DIMENSÕES | M2: COMPRI-MENTO | N2: DIMENSIONAMENTO
D3: A | E3: C | F3: CONCEN- | G3: PLUVIO- | H3: Q | I3: DADE | K3: b | L3: h | N3: RUGOSIDADE | O3: ÁREA | P3: PERÍMETRO | Q3: RAIO | R3: VELOCIDADE | S3: LÂMINA | T3: RELAÇÃO | V3: H | W3: Qesc | X3: Qatingir
A4: INICIAL | B4: FINAL | C4: RELATIVA | F4: TRAÇÃO | G4: MÉTRICA | I4: I | M4: L | N4: DE MANNING | O4: MOLHADA | P4: MOLHADO | Q4: HIDRÁULICO | S4: Y | T4: Y/H | W4: Manning | X4: Racional
D5: ( ha ) | F5: tc ( min. ) | G5: i ( mm/min. ) | H5: ( m3/s ) | I5: ( m/m ) | K5: (m) | L5: (m) | M5: (m) | O5: ( m² ) | P5: (m) | Q5: (m) | R5: ( m/s ) | S5: ( m ) | V5: ( m) | W5: ( m³/s ) | X5: ( m³/s )
C6: Drenagem 01 | D6: 0.262424 | E6: 0.4 | F6: 10 | G6: 2.951333333 | H6: =(D6*E6*G6)/6 -> 0.05163337991 | I6: 0.0434 | J6: BD300 | K6: =IFERROR((VLOOKUP(J6,Auxiliar!$E$4:$G$8,2,0)),"-") -> 0.3 | L6: =IFERROR((VLOOKUP(J6,Auxiliar!$E$4:$G$8,3,0)),"-") -> 0.265 | M6: 175 | N6: 0.0105 | O6: =IF(J6="BD300",(0.1642*S6^2)+(0.237*S6)-0.0043,0) -> 0.01839790339 | P6: =IF(J6="BD300",(-1.3918*S6^2)+(2.5237*S6)+0.1251,0) -> 0.3412824312 | Q6: =IFERROR((O6/P6),"-") -> 0.05390814676 | R6: =IFERROR(((Q6^(2/3))*(I6^0.5))/N6,"-") -> 2.831338756 | S6: =V6 -> 0.09014210925 | T6: =IFERROR(S6/L6,"calcular") -> 0.3401589028 | V6: 0.09014210925 | W6: =IFERROR(R6*O6,"-") -> 0.0520906969 | X6: =H6 -> 0.05163337991
C7: Drenagem 02 | D7: 0.284852 | E7: 0.4 | F7: 10 | G7: 2.951333333 | H7: =(D7*E7*G7)/6 -> 0.05604621351 | I7: 0.0379 | J7: BD300 | K7: =IFERROR((VLOOKUP(J7,Auxiliar!$E$4:$G$8,2,0)),"-") -> 0.3 | L7: =IFERROR((VLOOKUP(J7,Auxiliar!$E$4:$G$8,3,0)),"-") -> 0.265 | M7: 44.11 | N7: 0.0105 | O7: =IF(J7="BD300",(0.1642*S7^2)+(0.237*S7)-0.0043,0) -> 0.02047027329 | P7: =IF(J7="BD300",(-1.3918*S7^2)+(2.5237*S7)+0.1251,0) -> 0.3587822455 | Q7: =IFERROR((O7/P7),"-") -> 0.05705486696 | R7: =IFERROR(((Q7^(2/3))*(I7^0.5))/N7,"-") -> 2.747844193 | S7: =V7 -> 0.09787849933 | T7: =IFERROR(S7/L7,"calcular") -> 0.3693528277 | V7: 0.09787849933 | W7: =IFERROR(R7*O7,"-") -> 0.05624912158 | X7: =H7 -> 0.05604621351
C8: Drenagem 03 | D8: 0.30728 | E8: 0.4 | F8: 10 | G8: 2.951333333 | H8: 0.06045904711 | I8: 0.0639 | J8: BD300 | K8: =IFERROR((VLOOKUP(J8,Auxiliar!$E$4:$G$8,2,0)),"-") -> 0.3 | L8: =IFERROR((VLOOKUP(J8,Auxiliar!$E$4:$G$8,3,0)),"-") -> 0.265 | M8: 25.19 | N8: 0.0105 | O8: 0.01792546386 | P8: 0.3372461118 | Q8: 0.05315247008 | R8: 3.403377299 | S8: 0.08836809744 | T8: 0.3334645186 | V8: 0.08836809744 | W8: 0.06100711679 | X8: 0.06045904711
C9: Drenagem 04 | D9: 0.0452 | E9: 0.4 | F9: 10 | G9: 2.951333333 | H9: 0.008893351111 | I9: 0.0028 | J9: BD300 | K9: =IFERROR((VLOOKUP(J9,Auxiliar!$E$4:$G$8,2,0)),"-") -> 0.3 | L9: =IFERROR((VLOOKUP(J9,Auxiliar!$E$4:$G$8,3,0)),"-") -> 0.265 | M9: 89.67 | N9: 0.0105 | O9: 0.01409406887 | P9: 0.3038500198 | Q9: 0.04638495297 | R9: 0.6505906192 | S9: 0.07383507644 | T9: 0.2786229299 | V9: 0.07383507644 | W9: 0.009169468997 | X9: 0.008893351111
C10: Drenagem 05 | D10: 0.204155 | E10: 0.4 | F10: 10 | G10: 2.951333333 | H10: 0.04016863044 | I10: 0.0257 | J10: BD300 | K10: =IFERROR((VLOOKUP(J10,Auxiliar!$E$4:$G$8,2,0)),"-") -> 0.3 | L10: =IFERROR((VLOOKUP(J10,Auxiliar!$E$4:$G$8,3,0)),"-") -> 0.265 | M10: 81.05 | N10: 0.0105 | O10: 0.01852605217 | P10: 0.3423742515 | Q10: 0.05411052991 | R10: 2.184230433 | S10: 0.09062264034 | T10: 0.3419722277 | V10: 0.09062264034 | W10: 0.04046516697 | X10: 0.04016863044
C11: Drenagem 06 | D11: 0.077406 | E11: 0.4 | F11: 10 | G11: 2.951333333 | H11: 0.01523006053 | I11: 0.0543 | J11: BD300 | K11: =IFERROR((VLOOKUP(J11,Auxiliar!$E$4:$G$8,2,0)),"-") -> 0.3 | L11: =IFERROR((VLOOKUP(J11,Auxiliar!$E$4:$G$8,3,0)),"-") -> 0.265 | M11: 39.38 | N11: 0.0105 | O11: 0.007257458373 | P11: 0.2411676441 | Q11: 0.0300930019 | R11: 2.147109981 | S11: 0.04722078006 | T11: 0.1781916229 | V11: 0.04722078006 | W11: 0.01558256131 | X11: 0.01523006053
C12: Drenagem 07 | D12: 0.466024 | E12: 0.4 | F12: 10 | G12: 2.951333333 | H12: 0.09169281102 | I12: 0.0296 | J12: BD300 | K12: =IFERROR((VLOOKUP(J12,Auxiliar!$E$4:$G$8,2,0)),"-") -> 0.3 | L12: =IFERROR((VLOOKUP(J12,Auxiliar!$E$4:$G$8,3,0)),"-") -> 0.265 | M12: 46.6 | N12: 0.0105 | O12: 0.03248808144 | P12: 0.4540730313 | Q12: 0.07154814139 | R12: 2.823939972 | S12: 0.1413762666 | T12: 0.5334953458 | V12: 0.1413762666 | W12: 0.09174439181 | X12: 0.09169281102
C13: Drenagem 08 | D13: 0.15979 | E13: 0.4 | F13: 10 | G13: 2.951333333 | H13: 0.03143957022 | I13: 0.0516 | J13: BD300 | K13: =IFERROR((VLOOKUP(J13,Auxiliar!$E$4:$G$8,2,0)),"-") -> 0.3 | L13: =IFERROR((VLOOKUP(J13,Auxiliar!$E$4:$G$8,3,0)),"-") -> 0.265 | M13: 97.37 | N13: 0.0105 | O13: 0.01202465337 | P13: 0.2853065556 | Q13: 0.04214643209 | R13: 2.620049091 | S13: 0.06587395568 | T13: 0.2485809648 | V13: 0.06587395568 | W13: 0.03150518213 | X13: 0.03143957022
C14: Drenagem 09 | D14: 0.875219 | E14: 0.4 | F14: 10 | G14: 2.951333333 | H14: 0.1722042006 | I14: 0.0287 | J14: BD300 | K14: =IFERROR((VLOOKUP(J14,Auxiliar!$E$4:$G$8,2,0)),"-") -> 0.3 | L14: =IFERROR((VLOOKUP(J14,Auxiliar!$E$4:$G$8,3,0)),"-") -> 0.265 | M14: 51.88 | N14: 0.0105 | O14: 0.05351911406 | P14: 0.5988019934 | Q14: 0.08937698045 | R14: 3.225289985 | S14: 0.2126367562 | T14: 0.8024028535 | V14: 0.2126367562 | W14: 0.1726146626 | X14: 0.1722042006
C15: Drenagem 10 | D15: 0.164094 | E15: 0.4 | F15: 10 | G15: 2.951333333 | H15: 0.03228640613 | I15: 0.0597 | J15: BD300 | K15: =IFERROR((VLOOKUP(J15,Auxiliar!$E$4:$G$8,2,0)),"-") -> 0.3 | L15: =IFERROR((VLOOKUP(J15,Auxiliar!$E$4:$G$8,3,0)),"-") -> 0.265 | M15: 92.37 | N15: 0.0105 | O15: 0.0116406678 | P15: 0.2818255699 | Q15: 0.0413045126 | R15: 2.780542479 | S15: 0.06438788012 | T15: 0.2429731325 | V15: 0.06438788012 | W15: 0.03236737131 | X15: 0.03228640613
C16: Drenagem 11 | D16: 1.2669 | E16: 0.4 | F16: 10 | G16: 2.951333333 | H16: 0.2492696133 | I16: 0.0262 | J16: BD300 | K16: =IFERROR((VLOOKUP(J16,Auxiliar!$E$4:$G$8,2,0)),"-") -> 0.3 | L16: =IFERROR((VLOOKUP(J16,Auxiliar!$E$4:$G$8,3,0)),"-") -> 0.265 | M16: 58.88 | N16: 0.0105 | O16: 0.07358985955 | P16: 0.7154574053 | Q16: 0.10285708 | R16: 3.384159371 | S16: 0.2759076999 | T16: 1.041161132 | V16: 0.2759076999 | W16: 0.2490398128 | X16: 0.2492696133
C17: Drenagem 12 | D17: 0.22882 | E17: 0.4 | F17: 10 | G17: 2.951333333 | H17: 0.04502160622 | I17: 0.0462 | J17: BD300 | K17: =IFERROR((VLOOKUP(J17,Auxiliar!$E$4:$G$8,2,0)),"-") -> 0.3 | L17: =IFERROR((VLOOKUP(J17,Auxiliar!$E$4:$G$8,3,0)),"-") -> 0.265 | M17: 94.59 | N17: 0.0105 | O17: 0.01634241002 | P17: 0.3235918698 | Q17: 0.05050315397 | R17: 2.796902686 | S17: 0.08239519589 | T17: 0.3109252675 | V17: 0.08239519589 | W17: 0.0457081305 | X17: 0.04502160622
C18: Drenagem 13 | D18: 0.3916 | E18: 0.4 | F18: 10 | G18: 2.951333333 | H18: 0.07704947556 | I18: 0.0568 | J18: BD300 | K18: =IFERROR((VLOOKUP(J18,Auxiliar!$E$4:$G$8,2,0)),"-") -> 0.3 | L18: =IFERROR((VLOOKUP(J18,Auxiliar!$E$4:$G$8,3,0)),"-") -> 0.265 | M18: 41.52 | N18: 0.0105 | O18: 0.02227769743 | P18: 0.3737767254 | Q18: 0.05960161755 | R18: 3.463300958 | S18: 0.1045666807 | T18: 0.3945912478 | V18: 0.1045666807 | W18: 0.07715437086 | X18: 0.07704947556
C19: Drenagem 14 | D19: 0.3984 | E19: 0.4 | F19: 10 | G19: 2.951333333 | H19: 0.07838741333 | I19: 0.0554 | J19: BD300 | K19: =IFERROR((VLOOKUP(J19,Auxiliar!$E$4:$G$8,2,0)),"-") -> 0.3 | L19: =IFERROR((VLOOKUP(J19,Auxiliar!$E$4:$G$8,3,0)),"-") -> 0.265 | M19: 4.51 | N19: 0.0105 | O19: 0.02277632609 | P19: 0.3778702829 | Q19: 0.06027551549 | R19: 3.446086746 | S19: 0.1064022963 | T19: 0.4015180993 | V19: 0.1064022963 | W19: 0.07848919548 | X19: 0.07838741333
C20: Drenagem 15 | D20: 0.4196 | E20: 0.4 | F20: 10 | G20: 2.951333333 | H20: 0.08255863111 | I20: 0.0508 | J20: BD300 | K20: =IFERROR((VLOOKUP(J20,Auxiliar!$E$4:$G$8,2,0)),"-") -> 0.3 | L20: =IFERROR((VLOOKUP(J20,Auxiliar!$E$4:$G$8,3,0)),"-") -> 0.265 | M20: 17.93 | N20: 0.0105 | O20: 0.02445772543 | P20: 0.3915390071 | Q20: 0.06246561642 | R20: 3.37937648 | S20: 0.1125623064 | T20: 0.4247634206 | V20: 0.1125623064 | W20: 0.08265186206 | X20: 0.08255863111

Sheet Auxiliar
E3: Canal ACO Monoblock | F3: Base | G3: Hútil | H3: Am | I3: Pm
E4: BD300 | F4: 0.3 | G4: 0.265
